[Event "Swiss Championship U16 2022"]
[Site "Biel"]
[Date "2022.07.21"]
[Round "7.5"]
[White "Kwiatkowski, Jakub"]
[Black "Knapp, Yanik"]
[Result "1-0"]
[ECO "B30"]
[WhiteElo "1770"]
[BlackElo "1675"]
[Annotator "NA RC COMBH"]
[PlyCount "97"]
[EventDate "2022.07.18"]
[EventType "swiss"]
[EventCountry "SUI"]
[SourceTitle "playchess.com"]
[Source "ChessBase"]
[SourceQuality "1"]
[TimeControl "5400+30"]

1. e4 {[%emt 0:00:02]} c5 {[%emt 0:00:05]} 2. Nc3 {[%emt 0:00:05]} Nc6 {[%emt 0:00:05]} 3. Nf3 {[%emt 0:00:05]} e5 {[%emt 0:00:09]} 4. Bc4 {[%emt 0:00:06]} d6 {[%emt 0:00:24]} 5. O-O {[%emt 0:00:25]} Be7 {[%emt 0:00:15]} 6. a4 {[%emt 0:00:22]} Be6 {[%emt 0:03:37]} 7. Nd5 {[%emt 0:02:12]} Nf6 {[%emt 0:08:28]} 8. Nxf6+ {[%emt 0:07:16]} Bxf6 {[%emt 0:00:21]} 9. d3 {[%emt 0:00:25]} O-O {[%emt 0:04:28]} 10. c3 {[%emt 0:03:13]} a6 {[%emt 0:04:01]} 11. Be3 {[%emt 0:04:35]} Rc8 {[%emt 0:06:42]} 12. Bxe6 {[%emt 0:05:23]} fxe6 {[%emt 0:00:08]} 13. b4 {[%emt 0:01:40]} cxb4 {[%emt 0:03:36]} 14. cxb4 {[%emt 0:01:11]} Nd4 {[%emt 0:03:41]} 15. Nxd4 {[%emt 0:09:16]} exd4 {[%emt 0:00:08]} 16. Bd2 {[%emt 0:00:08]} Qd7 {[%emt 0:04:19]} 17. f4 {[%emt 0:04:55]} d5 {[%emt 0:07:07]} 18. e5 {[%emt 0:03:10]} Be7 {[%emt 0:01:25]} 19. Qb3 {[%emt 0:02:45]} b5 {[%emt 0:04:07]} 20. axb5 {[%emt 0:02:11]} Qxb5 {[%emt 0:03:47]} 21. Ra5 {[%emt 0:02:10]} Qb7 {[%emt 0:07:52]} 22. Rfa1 {[%emt 0:04:35]} Rc6 {[%emt 0:02:14]} 23. Qa4 {[%emt 0:02:26]} Rb8 {[%emt 0:05:43]} 24. Rxa6 {[%emt 0:04:38]} Rxa6 {[%emt 0:00:16]} 25. Qxa6 {[%emt 0:00:05]} Qxa6 {[%emt 0:00:15]} 26. Rxa6 {[%emt 0:00:06]} Bxb4 {[%emt 0:05:34]} 27. Bxb4 {[%emt 0:01:24]} Rxb4 {[%emt 0:00:05]} 28. Rxe6 {[%emt 0:00:41]} Rb3 {[%emt 0:01:09]} 29. Rd6 {[%emt 0:04:16]} Rxd3 {[%emt 0:00:37]} 30. Rxd5 {[%emt 0:00:19]} Kf7 {[%emt 0:06:06]} 31. f5 {[%emt 0:05:03]} Ke7 {[%emt 0:04:39]} 32. Kf2 {[%emt 0:02:14]} Rd2+ {[%emt 0:02:48]} 33. Kf3 {[%emt 0:00:39]} d3 {[%emt 0:01:59]} 34. g4 {[%emt 0:01:49]} Rxh2 {[%emt 0:02:44]} 35. Rxd3 {[%emt 0:00:10]} h6 {[%emt 0:01:36]} 36. Rd6 {[%emt 0:03:57]} Ra2 {[%emt 0:02:28]} 37. Rg6 {[%emt 0:01:00]} Kf7 {[%emt 0:01:11]} 38. e6+ {[%emt 0:01:45]} Kf8 {[%emt 0:00:23]} 39. f6 {[%emt 0:04:24]} gxf6 {[%emt 0:01:36]} 40. Rxf6+ {[%emt 0:00:10]} Kg7 {[%emt 0:01:15]} 41. Rf7+ {[%emt 0:01:26]} Kg8 {[%emt 0:01:05]} 42. Ke4 {[%emt 0:01:25]} Ra5 {[%emt 0:01:35]} 43. Rf5 {[%emt 0:00:55]} Ra4+ {[%emt 0:00:41]} 44. Ke5 {[%emt 0:00:49]} Ra7 {[%emt 0:01:06]} 45. Kf6 {[%emt 0:01:13]} Kf8 {[%emt 0:00:13]} 46. Rd5 {[%emt 0:02:17]} Ke8 {[%emt 0:00:30]} 47. Rb5 {[%emt 0:00:46]} Ra8 {[%emt 0:00:33]} 48. Rb7 {[%emt 0:00:11]} Rc8 {[%emt 0:00:21]} 49. Rh7 {[%emt 0:00:21]} 1-0

[Event "Swiss Championship U16 2022"]
[Site "Biel"]
[Date "2022.07.21"]
[Round "7.6"]
[White "Zargarov, Mikayel"]
[Black "Gendre, Arthur"]
[Result "1-0"]
[ECO "E00"]
[WhiteElo "1994"]
[BlackElo "1414"]
[Annotator "TA"]
[PlyCount "35"]
[EventDate "2022.07.18"]
[EventType "swiss"]
[EventCountry "SUI"]
[SourceTitle "playchess.com"]
[Source "ChessBase"]
[SourceQuality "1"]
[TimeControl "5400+30"]

{[%evp 9,35,19,24,17,26,-36,14,11,0,6,13,15,25,13,21,0,24,15,25,6,20,19,25,33,27,24,850,840]} 1. d4 {[%emt 0:00:06]} Nf6 {[%emt 0:00:04]} 2. c4 {[%emt 0:00:24]} e6 {[%emt 0:00:20]} 3. g3 {[%emt 0:00:22]} Bb4+ {[%emt 0:00:20]} 4. Bd2 {[%emt 0:00:04]} Bxd2+ {[%emt 0:03:48]} 5. Qxd2 {[%emt 0:00:11]} O-O {[%emt 0:00:22]} 6. Bg2 {[%emt 0:00:34] E00: Catalan Bogo-Indian (3 g3 Bb4+).} d5 {[%emt 0:01:07]} 7. Nc3 {[%emt 0:01:20]} ({Better is} 7. Nf3 $11) 7... c6 {[%emt 0:11:13]} ({Black should play} 7... dxc4 $15 8. Nf3 Nc6) 8. Nf3 $11 {[%emt 0:01:49] The position is equal.} Nbd7 {[%emt 0:06:43]} 9. b3 {[%emt 0:02:47]} b6 {[%emt 0:08:15]} 10. cxd5 {[%emt 0:01:07]} cxd5 {[%emt 0:03:03]} 11. O-O {[%emt 0:01:07]} Bb7 {[%emt 0:26:37] [#]} 12. Qf4 $146 {[%emt 0:07:20]} ({Predecessor:} 12. Rfc1 Qe7 13. e3 Rfc8 14. a4 Qb4 15. Qb2 Ba6 16. Na2 Qd6 17. b4 Bc4 18. Nc3 {0-1 (54) Yeletsky,I (2459)-Khanin,S (2517) Chess.com INT 2021}) 12... a6 {[%emt 0:06:48]} 13. Rfc1 {[%emt 0:02:19]} Rc8 {[%emt 0:02:34]} 14. Ne1 {[%emt 0:02:23]} b5 {[%emt 0:01:23]} 15. Nd3 {[%emt 0:02:27]} Qb6 {[%emt 0:09:43]} 16. e3 {[%emt 0:02:19]} Rc7 {[%emt 0:01:07]} 17. b4 {[%emt 0:03:42]} Qa7 $2 {[%emt 0:02:32][%mdl 8192] [#]} 18. Qxc7 {[%emt 0:03:18] Weighted Error Value: White=0.12 (very precise) /Black=0.13 (very precise)} 1-0

[Event "Swiss Championship U16 2022"]
[Site "Biel"]
[Date "2022.07.21"]
[Round "7.7"]
[White "Saminskij, David"]
[Black "Kostov, Kyrill"]
[Result "0-1"]
[ECO "B50"]
[WhiteElo "1469"]
[BlackElo "2008"]
[Annotator "TA"]
[PlyCount "74"]
[EventDate "2022.07.18"]
[EventType "swiss"]
[EventCountry "SUI"]
[SourceTitle "playchess.com"]
[Source "ChessBase"]
[SourceQuality "1"]
[TimeControl "5400+30"]

{[%evp 9,74,0,0,0,0,-9,-14,-11,0,-41,0,-47,0,-23,-9,-48,-43,-47,-47,-98,-108,-110,-54,-59,-33,-73,-74,-80,-36,-39,-18,-23,-36,-45,0,-29,-20,-47,0,0,-1,-4,0,0,0,0,16,0,20,21,136,-41,-89,-67,-78,-75,-75,-220,-214,-215,-221,-217,-222,-361,-369,-2114,-1999]} 1. e4 {[%emt 0:00:06]} c5 {[%emt 0:00:53]} 2. Nf3 {[%emt 0:00:09]} d6 {[%emt 0:00:38]} 3. c3 {[%emt 0:00:08]} Nf6 {[%emt 0:00:24]} 4. Be2 {[%emt 0:00:04]} Bd7 {[%emt 0:00:06]} 5. d3 {[%emt 0:00:10]} Nc6 {[%emt 0:00:29]} 6. O-O {[%emt 0:00:13] B50: Sicilian: 2...d6, Miscellaneous.} e5 {[%emt 0:00:00]} 7. Be3 {[%emt 0:00:33]} Be7 {[%emt 0:00:09]} 8. Nbd2 {[%emt 0:00:40] The position is equal.} O-O {[%emt 0:01:19] [#]} 9. h3 $146 {[%emt 0:00:02]} ({Predecessor:} 9. a4 a6 10. d4 cxd4 11. cxd4 exd4 12. Nxd4 Nxd4 13. Bxd4 Bc6 14. f3 Nd7 15. Bf2 Bf6 16. Nc4 Nc5 {0-1 (16) Botero Torres,L (1542)-Nunez Romero,R (1635) Cartagena 2016}) 9... Re8 {[%emt 0:00:46]} 10. Rb1 {[%emt 0:00:16]} (10. d4 $11) 10... a5 {[%emt 0:01:42]} (10... d5 $15) 11. a4 {[%emt 0:01:44]} h6 {[%emt 0:15:32]} 12. d4 {[%emt 0:03:02]} exd4 {[%emt 0:03:20]} 13. cxd4 {[%emt 0:05:08]} Bf8 {[%emt 0:00:19]} 14. Bd3 {[%emt 0:07:22]} (14. dxc5 $15 dxc5 15. Bb5) 14... Nb4 $17 {[%emt 0:06:42]} 15. Bc2 {[%emt 0:00:29]} Rc8 {[%emt 0:09:31] Black is more active.} ({Better is} 15... Nxc2 $17 16. Qxc2 Nxe4 $1 17. Nxe4 Bf5) 16. dxc5 {[%emt 0:09:31]} dxc5 {[%emt 0:08:39]} 17. e5 {[%emt 0:04:52]} Nfd5 {[%emt 0:01:10]} 18. Nc4 {[%emt 0:00:55]} Nxe3 {[%emt 0:05:37]} 19. Nxe3 {[%emt 0:00:50]} Be6 {[%emt 0:01:51]} 20. Bf5 {[%emt 0:05:49]} Bxf5 {[%emt 0:07:28]} 21. Nxf5 {[%emt 0:00:22]} Qb6 {[%emt 0:04:01]} 22. b3 {[%emt 0:04:54]} Rcd8 {[%emt 0:03:45]} 23. Qc1 {[%emt 0:00:10]} Qe6 {[%emt 0:03:52]} (23... Nd3 $15 24. Qc2 Nxe5 25. Nxe5 Rxe5) 24. Ne3 $1 $11 {[%emt 0:00:53]} Nd3 {[%emt 0:05:11][%csl LRc1,LRe5]} 25. Qc3 {[%emt 0:00:21]} b6 {[%emt 0:00:55][%cal Rd3e5]} 26. Nc4 {[%emt 0:00:11]} Nf4 {[%emt 0:02:22] ...Ne2+ is the strong threat.} 27. Qe3 {[%emt 0:02:51] Prevents Ne2+.} Qf5 {[%emt 0:03:06] Strongly threatening ...Rd3.} 28. Rbd1 {[%emt 0:01:54]} (28. Nxb6 $2 Rd3 29. Nc4 Rxe3 $19) 28... Rxd1 {[%emt 0:00:00]} 29. Rxd1 {[%emt 0:01:09]} Re6 {[%emt 0:00:00]} (29... Be7 $11 {remains equal.}) 30. Nd6 $2 {[%emt 0:02:38] Pair of Knights!} ({White should try} 30. Kh2 $1 $16 {Hoping for g4.} g5 31. Rd8) 30... Qc2 $40 {[%emt 0:03:24][%mdl 128] Black is out for blood.} 31. Rd2 {[%emt 0:01:03]} Qc1+ {[%emt 0:02:22]} 32. Kh2 {[%emt 0:02:57] [#]} Nxg2 {[%emt 0:01:59]} 33. Kxg2 {[%emt 0:04:57] This move loses the game for White.} (33. Qe4 $17 Bxd6 34. Rxd6 Qf4+ 35. Qxf4 Nxf4 36. Rxe6 fxe6 37. Nd2) 33... Rg6+ $19 {[%emt 0:00:02]} 34. Kh2 {[%emt 0:00:11]} Qf1 {[%emt 0:00:01][%csl Gf1][%cal Rg6g2]} 35. Ng5 {[%emt 0:00:22]} Rxg5 {[%emt 0:01:55][%csl Gg5][%cal Rf1g1]} (35... Bxd6 $2 36. exd6 Rxg5 {[#]} 37. Qxg5 $3 {[%mdl 512]} (37. f4 $2 Rg1 $19) 37... hxg5 38. d7 $18) 36. f4 {[%emt 0:00:07]} (36. f3 $142) 36... Rg1 $1 {[%emt 0:00:08]} 37. Qe2 $2 {[%emt 0:05:31]} (37. Qxg1 Qxf4+ 38. Kg2 Qg5+ 39. Kh2 Qxd2+ 40. Qg2 Qxg2+ 41. Kxg2 Bxd6 42. exd6) 37... Rh1+ {[%emt 0:00:20] Weighted Error Value: White=0.50/Black=0.16 (very precise)} 0-1

[Event "Swiss Championship U16 2022"]
[Site "Biel"]
[Date "2022.07.21"]
[Round "7.8"]
[White "Hirzel, Cedric"]
[Black "Sosnovski, Nikita"]
[Result "1/2-1/2"]
[ECO "A13"]
[WhiteElo "1649"]
[BlackElo "1584"]
[Annotator "NA RC COMBH"]
[PlyCount "52"]
[EventDate "2022.07.18"]
[EventType "swiss"]
[EventCountry "SUI"]
[SourceTitle "playchess.com"]
[Source "ChessBase"]
[SourceQuality "1"]
[TimeControl "5400+30"]

1. c4 {[%emt 0:00:02]} e6 {[%emt 0:00:32]} 2. g3 {[%emt 0:00:34]} d5 {[%emt 0:00:00]} 3. Bg2 {[%emt 0:00:08]} Nf6 {[%emt 0:00:00]} 4. Nf3 {[%emt 0:00:10]} dxc4 {[%emt 0:00:02]} 5. Qa4+ {[%emt 0:04:04]} Nbd7 {[%emt 0:03:59]} 6. Qxc4 {[%emt 0:01:07]} c5 {[%emt 0:01:06]} 7. O-O {[%emt 0:01:17]} Bd6 {[%emt 0:02:06]} 8. Rd1 {[%emt 0:02:26]} O-O {[%emt 0:00:52]} 9. d4 {[%emt 0:00:57]} Qe7 {[%emt 0:03:36]} 10. Qc2 {[%emt 0:04:53]} Rb8 {[%emt 0:11:18]} 11. e4 {[%emt 0:00:24]} cxd4 {[%emt 0:02:27]} 12. Nxd4 {[%emt 0:02:16]} a6 {[%emt 0:05:39]} 13. Nc3 {[%emt 0:06:59]} Bc5 {[%emt 0:12:25]} 14. Nce2 {[%emt 0:13:52]} Ng4 {[%emt 0:11:19]} 15. Rf1 {[%emt 0:22:14]} Qf6 {[%emt 0:04:11]} 16. Nf3 {[%emt 0:04:47]} Nde5 {[%emt 0:06:19]} 17. Bf4 {[%emt 0:11:00]} Nxf3+ {[%emt 0:00:32]} 18. Bxf3 {[%emt 0:01:11]} Bxf2+ {[%emt 0:02:22]} 19. Rxf2 {[%emt 0:00:00]} Nxf2 {[%emt 0:00:42]} 20. Kxf2 {[%emt 0:00:07]} e5 {[%emt 0:00:47]} 21. Qc7 {[%emt 0:09:31]} exf4 {[%emt 0:00:06]} 22. Qxb8 {[%emt 0:00:13]} Qb6+ {[%emt 0:00:19]} 23. Ke1 {[%emt 0:05:06]} Qb4+ {[%emt 0:01:07]} 24. Kf2 {[%emt 0:01:52]} Qb6+ {[%emt 0:00:22]} 25. Ke1 {[%emt 0:00:12]} Qb4+ {[%emt 0:06:08]} 26. Kf2 {[%emt 0:00:15]} Qb6+ {[%emt 0:00:45]} 1/2-1/2